[Event "47th GRE-chT 2019"]
[Site "Patra"]
[Date "2019.07.05"]
[Round "5.19"]
[White "Koutlas, Nikolaos"]
[Black "Gavriil, Odysseas-Panagiotis"]
[Result "1-0"]
[ECO "A10"]
[WhiteElo "1969"]
[BlackElo "2038"]
[Annotator "NA RC"]
[PlyCount "55"]
[EventDate "2019.07.02"]
[EventCountry "GRE"]
[SourceTitle "playchess.com"]
[Source "ChessBase"]
[SourceQuality "1"]
[TimeControl "5400+30"]

1. c4 {[%emt 0:00:00]} b6 {[%emt 0:00:00]} 2. Nc3 {[%emt 0:00:20]} Bb7 {[%emt 0:00:08]} 3. e4 {[%emt 0:01:19]} e5 {[%emt 0:00:04]} 4. d3 {[%emt 0:00:55]} Bc5 {[%emt 0:00:22]} 5. g3 {[%emt 0:03:41]} f5 {[%emt 0:05:23]} 6. Bg2 {[%emt 0:02:22]} Nf6 {[%emt 0:00:15]} 7. Nf3 {[%emt 0:09:46]} d6 {[%emt 0:05:09]} 8. exf5 {[%emt 0:04:25]} Qd7 {[%emt 0:02:06]} 9. O-O {[%emt 0:05:18]} Nc6 {[%emt 0:06:54]} 10. Ng5 {[%emt 0:07:07]} O-O {[%emt 0:34:36]} 11. Ne6 {[%emt 0:01:28]} Rf7 {[%emt 0:01:04]} 12. Nd5 {[%emt 0:06:17]} Ne8 {[%emt 0:01:42]} 13. Qh5 {[%emt 0:06:03]} Nd4 {[%emt 0:12:12]} 14. Ng5 {[%emt 0:04:20]} Qxf5 {[%emt 0:00:55]} 15. Be4 {[%emt 0:06:38]} g6 {[%emt 0:00:23]} 16. Qh4 {[%emt 0:02:01]} Ne2+ {[%emt 0:03:02]} 17. Kh1 {[%emt 0:02:01]} Qd7 {[%emt 0:01:57]} 18. Nxf7 {[%emt 0:01:17]} Qxf7 {[%emt 0:07:55]} 19. Ne7+ {[%emt 0:03:04]} Kf8 {[%emt 0:06:02]} 20. Bh6+ {[%emt 0:08:21]} Ng7 {[%emt 0:00:06]} 21. Bxb7 {[%emt 0:00:10]} Re8 {[%emt 0:00:49]} 22. f4 {[%emt 0:00:31]} exf4 {[%emt 0:01:18]} 23. Bxf4 {[%emt 0:02:19]} Rxe7 {[%emt 0:01:15]} 24. Bg5 {[%emt 0:01:01]} Nf5 {[%emt 0:02:09]} 25. Bxe7+ {[%emt 0:00:07]} Kg7 {[%emt 0:00:59]} 26. Qf6+ {[%emt 0:00:27]} Qxf6 {[%emt 0:00:11]} 27. Bxf6+ {[%emt 0:00:02]} Kxf6 {[%emt 0:00:01]} 28. g4 {[%emt 0:00:25]} 1-0

[Event "47th GRE-chT 2019"]
[Site "Patra"]
[Date "2019.07.05"]
[Round "5.19"]
[White "Stoimenidis, Dimitrios"]
[Black "Damianou, Ioannis"]
[Result "0-1"]
[ECO "B44"]
[WhiteElo "1586"]
[BlackElo "2154"]
[Annotator "NA"]
[PlyCount "239"]
[EventDate "2019.07.02"]
[EventCountry "GRE"]
[SourceTitle "playchess.com"]
[Source "ChessBase"]
[SourceQuality "1"]
[TimeControl "5400+30"]

1. e4 {[%emt 0:00:00]} c5 {[%emt 0:00:00]} 2. Nf3 {[%emt 0:00:00]} e6 {[%emt 0:00:10]} 3. d4 {[%emt 0:00:00]} cxd4 {[%emt 0:00:03]} 4. Nxd4 {[%emt 0:00:00]} Nc6 {[%emt 0:00:05]} 5. Nb5 {[%emt 0:00:32]} d6 {[%emt 0:00:06]} 6. c4 {[%emt 0:00:06]} a6 {[%emt 0:01:16]} 7. N5c3 {[%emt 0:00:03]} Nf6 {[%emt 0:00:22]} 8. Na3 {[%emt 0:01:13]} Be7 {[%emt 0:00:17]} 9. Be2 {[%emt 0:00:37]} O-O {[%emt 0:00:07]} 10. O-O {[%emt 0:00:07]} b6 {[%emt 0:01:48]} 11. Be3 {[%emt 0:00:56]} Bb7 {[%emt 0:00:11]} 12. Qb3 {[%emt 0:00:15]} Nd7 {[%emt 0:02:11]} 13. Rfd1 {[%emt 0:02:33]} Rb8 {[%emt 0:10:44]} 14. Rac1 Nc5 {[%emt 0:03:46]} 15. Qc2 {[%emt 0:08:58]} Ne5 {[%emt 0:04:24]} 16. f4 {[%emt 0:05:07]} Ng6 {[%emt 0:03:31]} 17. g3 {[%emt 0:16:59]} Qc7 {[%emt 0:03:03]} 18. Bf3 {[%emt 0:04:17]} Rfe8 {[%emt 0:07:26]} 19. Qg2 {[%emt 0:05:07]} Rbd8 {[%emt 0:08:05]} 20. Nab1 {[%emt 0:04:30]} Qb8 {[%emt 0:05:55]} 21. Nd2 {[%emt 0:11:05]} Bf8 {[%emt 0:04:14]} 22. Bf2 {[%emt 0:03:42]} Ba8 {[%emt 0:02:32]} 23. Nf1 {[%emt 0:02:07]} Rc8 {[%emt 0:10:55]} 24. h4 {[%emt 0:04:41]} Ne7 {[%emt 0:01:42]} 25. Be3 {[%emt 0:03:03]} g6 {[%emt 0:01:52]} 26. h5 {[%emt 0:02:25]} b5 {[%emt 0:01:47]} 27. b4 {[%emt 0:01:21]} Nd7 {[%emt 0:00:17]} 28. c5 {[%emt 0:01:35]} Nc6 {[%emt 0:03:49]} 29. cxd6 {[%emt 0:01:20]} Nxb4 {[%emt 0:00:24]} 30. e5 {[%emt 0:04:57]} Bxf3 {[%emt 0:07:00]} 31. Qxf3 {[%emt 0:00:14]} Red8 {[%emt 0:01:39]} 32. a3 {[%emt 0:04:23]} Nc6 {[%emt 0:00:14]} 33. hxg6 {[%emt 0:03:02]} hxg6 {[%emt 0:00:11]} 34. Qe4 {[%emt 0:06:35]} Na5 {[%emt 0:05:39]} 35. Rc2 {[%emt 0:04:08]} Nc4 {[%emt 0:00:54]} 36. Bd4 {[%emt 0:00:29]} Qa8 {[%emt 0:01:57]} 37. Qxa8 {[%emt 0:00:54]} Rxa8 {[%emt 0:00:01]} 38. a4 {[%emt 0:00:41]} Na3 {[%emt 0:03:21]} 39. Rb2 {[%emt 0:00:52]} Rdb8 {[%emt 0:01:16]} 40. axb5 {[%emt 0:00:00]} axb5 {[%emt 0:00:00]} 41. Nd2 {[%emt 0:00:00]} f6 {[%emt 0:00:00]} 42. Nce4 {[%emt 0:00:00]} fxe5 {[%emt 0:00:00]} 43. fxe5 {[%emt 0:00:00]} Bg7 {[%emt 0:00:00]} 44. Ng5 {[%emt 0:00:00]} Bxe5 {[%emt 0:00:00]} 45. Bxe5 {[%emt 0:00:00]} Nxe5 {[%emt 0:00:00]} 46. Nxe6 {[%emt 0:00:00]} Ra6 {[%emt 0:00:00]} 47. Ne4 {[%emt 0:00:00]} Nac4 {[%emt 0:00:00]} 48. Rf2 {[%emt 0:00:00]} Nd7 {[%emt 0:00:00]} 49. Nf6+ {[%emt 0:00:00]} Nxf6 {[%emt 0:00:00]} 50. Rxf6 {[%emt 0:00:00]} Rxd6 {[%emt 0:00:00]} 51. Rxd6 {[%emt 0:00:00]} Nxd6 {[%emt 0:00:00]} 52. Nd4 {[%emt 0:01:16]} Ne4 {[%emt 0:00:18]} 53. Rxg6+ {[%emt 0:01:19]} Kf7 {[%emt 0:00:05]} 54. Rg4 {[%emt 0:00:09]} Nf6 {[%emt 0:00:51]} 55. Rf4 {[%emt 0:00:47]} Rb6 {[%emt 0:00:25]} 56. Rf3 {[%emt 0:01:45]} b4 {[%emt 0:00:17]} 57. Rb3 {[%emt 0:00:43]} Nd5 {[%emt 0:00:16]} 58. Nc2 {[%emt 0:00:30]} Ke6 {[%emt 0:00:13]} 59. Nxb4 {[%emt 0:00:43]} Nxb4 {[%emt 0:00:05]} 60. Kg2 {[%emt 0:00:40]} Kd5 {[%emt 0:00:10]} 61. Rb1 {[%emt 0:00:20]} Kc4 {[%emt 0:00:34]} 62. Kf3 {[%emt 0:00:43]} Rf6+ {[%emt 0:00:12]} 63. Kg4 {[%emt 0:00:20]} Nd5 {[%emt 0:00:27]} 64. Kg5 {[%emt 0:00:23]} Rf8 {[%emt 0:01:21]} 65. Rg1 {[%emt 0:00:44]} Kd4 {[%emt 0:00:10]} 66. g4 {[%emt 0:00:38]} Ke4 {[%emt 0:01:00]} 67. Kg6 {[%emt 0:00:19]} Rg8+ {[%emt 0:01:01]} 68. Kf7 {[%emt 0:01:42]} Rg5 {[%emt 0:00:07]} 69. Re1+ {[%emt 0:00:06]} Ne3 {[%emt 0:00:12]} 70. Ra1 {[%emt 0:00:27]} Nxg4 {[%emt 0:00:11]} 71. Re1+ {[%emt 0:00:25]} Ne3 {[%emt 0:00:21]} 72. Kf6 {[%emt 0:00:46]} Ra5 {[%emt 0:01:05]} 73. Ke6 {[%emt 0:00:48]} Ra6+ {[%emt 0:00:10]} 74. Kd7 {[%emt 0:00:17]} Kd4 {[%emt 0:00:22]} 75. Rh1 {[%emt 0:00:19]} Kc5 {[%emt 0:00:58]} 76. Ke7 {[%emt 0:00:20]} Nf5+ {[%emt 0:01:05]} 77. Kf7 {[%emt 0:00:10]} Kd5 {[%emt 0:00:09]} 78. Rd1+ {[%emt 0:00:33]} Nd4 {[%emt 0:01:11]} 79. Rh1 {[%emt 0:00:21]} Ke5 {[%emt 0:00:37]} 80. Re1+ {[%emt 0:00:10]} Kf4 {[%emt 0:00:06]} 81. Rb1 {[%emt 0:00:52]} Nf3 {[%emt 0:00:35]} 82. Ke7 {[%emt 0:00:12]} Ke4 {[%emt 0:02:08]} 83. Rb4+ {[%emt 0:01:04]} Nd4 {[%emt 0:00:06]} 84. Rb1 {[%emt 0:00:13]} Rc6 {[%emt 0:00:50]} 85. Re1+ {[%emt 0:00:20]} Kd5 {[%emt 0:00:06]} 86. Kf7 {[%emt 0:00:23]} Rd6 {[%emt 0:00:37]} 87. Rd1 {[%emt 0:00:56]} Kc6 {[%emt 0:00:47]} 88. Ra1 {[%emt 0:00:32]} Kb6 {[%emt 0:00:41]} 89. Rb1+ {[%emt 0:00:31]} Kc7 {[%emt 0:00:07]} 90. Ra1 {[%emt 0:00:37]} Nc6 {[%emt 0:00:10]} 91. Rf1 {[%emt 0:00:50]} Ne5+ {[%emt 0:00:50]} 92. Ke7 {[%emt 0:00:23]} Ng6+ {[%emt 0:00:21]} 93. Kf7 {[%emt 0:00:34]} Kd7 {[%emt 0:00:09]} 94. Ra1 {[%emt 0:00:49]} Ne5+ {[%emt 0:00:07]} 95. Kg7 {[%emt 0:00:43]} Ke6 {[%emt 0:01:35]} 96. Ra7 {[%emt 0:00:41]} Kf5 {[%emt 0:00:05]} 97. Ra1 {[%emt 0:01:08]} Rd7+ {[%emt 0:00:39]} 98. Kf8 {[%emt 0:00:48]} Ng4 {[%emt 0:03:09]} 99. Rf1+ {[%emt 0:00:31]} Kg5 {[%emt 0:00:01]} 100. Ke8 {[%emt 0:00:14]} Rh7 {[%emt 0:00:20]} 101. Kd8 {[%emt 0:00:35]} Ne3 {[%emt 0:00:06]} 102. Ra1 {[%emt 0:00:30]} Kf6 {[%emt 0:00:10]} 103. Ra6+ {[%emt 0:00:40]} Ke5 {[%emt 0:00:04]} 104. Ra1 {[%emt 0:00:32]} Nd5 {[%emt 0:00:12]} 105. Re1+ {[%emt 0:00:39]} Kd6 {[%emt 0:00:03]} 106. Ke8 {[%emt 0:00:17]} Nc7+ {[%emt 0:00:48]} 107. Kf8 {[%emt 0:00:15]} Ne6+ {[%emt 0:00:08]} 108. Kg8 {[%emt 0:00:15]} Rg7+ {[%emt 0:00:42]} 109. Kh8 {[%emt 0:00:01]} Rg4 {[%emt 0:00:11]} 110. Kh7 {[%emt 0:01:07]} Ke7 {[%emt 0:00:18]} 111. Rf1 {[%emt 0:00:24]} Nf4 {[%emt 0:00:19]} 112. Ra1 {[%emt 0:00:56]} Kf6 {[%emt 0:00:24]} 113. Ra8 {[%emt 0:00:45]} Rg7+ {[%emt 0:04:30]} 114. Kh6 {[%emt 0:00:01]} Rg6+ {[%emt 0:00:12]} 115. Kh7 {[%emt 0:00:14]} Ne6 {[%emt 0:00:11]} 116. Ra6 {[%emt 0:00:49]} Rg1 {[%emt 0:03:15]} 117. Ra2 {[%emt 0:00:49]} Nf8+ {[%emt 0:00:15]} 118. Kh8 {[%emt 0:00:21]} Ng6+ {[%emt 0:00:11]} 119. Kh7 {[%emt 0:00:47]} Rh1+ {[%emt 0:00:07]} 120. Kg8 0-1

[Event "47th GRE-chT 2019"]
[Site "Patra"]
[Date "2019.07.05"]
[Round "5.20"]
[White "Karamichos, Michail"]
[Black "Dogias, Christos"]
[Result "0-1"]
[ECO "B07"]
[WhiteElo "1559"]
[BlackElo "1409"]
[Annotator "NA RC"]
[PlyCount "100"]
[EventDate "2019.07.02"]
[EventCountry "GRE"]
[SourceTitle "playchess.com"]
[Source "ChessBase"]
[SourceQuality "1"]
[TimeControl "5400+30"]

1. d4 {[%emt 0:00:00]} Nf6 {[%emt 0:00:11]} 2. Bf4 {[%emt 0:00:20]} g6 {[%emt 0:03:22]} 3. Nc3 {[%emt 0:02:22]} Bg7 {[%emt 0:00:32]} 4. e4 {[%emt 0:00:44]} d6 {[%emt 0:00:50]} 5. f3 {[%emt 0:01:35]} O-O {[%emt 0:01:15]} 6. Bc4 {[%emt 0:01:44]} Nbd7 {[%emt 0:04:34]} 7. Be3 {[%emt 0:03:44]} e5 {[%emt 0:00:18]} 8. d5 {[%emt 0:02:25]} Nh5 {[%emt 0:02:41]} 9. g4 {[%emt 0:00:22]} Nf4 {[%emt 0:05:17]} 10. Qd2 {[%emt 0:07:03]} Qg5 {[%emt 0:01:48]} 11. O-O-O {[%emt 0:01:23]} Qf6 {[%emt 0:01:51]} 12. h4 {[%emt 0:01:29]} h5 {[%emt 0:14:25]} 13. g5 {[%emt 0:00:40]} Qd8 {[%emt 0:04:21]} 14. Bxf4 {[%emt 0:00:37]} exf4 {[%emt 0:02:25]} 15. Qxf4 {[%emt 0:00:51]} a6 {[%emt 0:04:19]} 16. Qd2 {[%emt 0:00:08]} b5 {[%emt 0:01:33]} 17. Be2 {[%emt 0:00:33]} Nc5 {[%emt 0:06:50]} 18. a3 {[%emt 0:02:06]} Bd7 {[%emt 0:03:24]} 19. Nh3 {[%emt 0:00:26]} Qb8 {[%emt 0:04:21]} 20. b4 {[%emt 0:01:03]} Nb7 {[%emt 0:04:14]} 21. Nf2 {[%emt 0:01:36]} Qa7 {[%emt 0:06:08]} 22. Nd3 {[%emt 0:00:33]} Qd4 {[%emt 0:00:51]} 23. Kb2 {[%emt 0:01:00]} c6 {[%emt 0:02:54]} 24. Nc1 {[%emt 0:00:20]} Qb6 {[%emt 0:03:55]} 25. N1a2 {[%emt 0:00:19]} c5 {[%emt 0:08:17]} 26. Kc1 {[%emt 0:00:33]} a5 {[%emt 0:02:10]} 27. f4 {[%emt 0:00:42]} axb4 {[%emt 0:00:33]} 28. axb4 {[%emt 0:00:08]} cxb4 {[%emt 0:01:46]} 29. Nxb4 {[%emt 0:00:29]} Qa5 {[%emt 0:01:27]} 30. Nb1 {[%emt 0:01:53]} Qa1 {[%emt 0:02:20]} 31. c3 {[%emt 0:00:18]} Rfc8 {[%emt 0:03:49]} 32. Kc2 {[%emt 0:02:26]} Ra3 {[%emt 0:01:15]} 33. e5 {[%emt 0:01:17]} Bf5+ {[%emt 0:00:44]} 34. Bd3 {[%emt 0:00:20]} Bxd3+ {[%emt 0:00:51]} 35. Kxd3 {[%emt 0:01:26]} Rb3 {[%emt 0:01:19]} 36. Nc6 {[%emt 0:00:24]} Nc5+ {[%emt 0:00:24]} 37. Ke3 {[%emt 0:00:09]} Re8 {[%emt 0:00:40]} 38. Kf3 {[%emt 0:00:58]} dxe5 {[%emt 0:00:31]} 39. Rc1 {[%emt 0:00:17]} e4+ {[%emt 0:00:00]} 40. Kg3 {[%emt 0:00:00]} e3 {[%emt 0:00:00]} 41. Qe2 {[%emt 0:00:00]} Rb2 {[%emt 0:00:00]} 42. Rc2 {[%emt 0:00:00]} Rxb1 {[%emt 0:00:00]} 43. Ra2 {[%emt 0:00:00]} Rxh1 {[%emt 0:00:00]} 44. Rxa1 {[%emt 0:00:00]} Rxa1 {[%emt 0:00:00]} 45. d6 {[%emt 0:00:00]} Ne4+ {[%emt 0:00:00]} 46. Kg2 {[%emt 0:00:00]} Nxd6 {[%emt 0:00:00]} 47. f5 {[%emt 0:00:00]} Nxf5 {[%emt 0:00:00]} 48. Qxb5 {[%emt 0:00:00]} e2 {[%emt 0:00:00]} 49. Nd4 {[%emt 0:00:00]} e1=Q {[%emt 0:00:00]} 50. Nxf5 {[%emt 0:00:00]} gxf5 {[%emt 0:00:00]} 0-1

[Event "47th GRE-chT 2019"]
[Site "Patra"]
[Date "2019.07.05"]
[Round "5.20"]
[White "Christodoulakis, Michail"]
[Black "Ximinis, Ioannis"]
[Result "0-1"]
[ECO "C01"]
[WhiteElo "1224"]
[BlackElo "1156"]
[Annotator "NA RC"]
[PlyCount "86"]
[EventDate "2019.07.02"]
[EventCountry "GRE"]
[SourceTitle "playchess.com"]
[Source "ChessBase"]
[SourceQuality "1"]
[TimeControl "5400+30"]

1. e4 {[%emt 0:00:00]} e6 {[%emt 0:00:00]} 2. d4 {[%emt 0:00:00]} d5 {[%emt 0:00:00]} 3. exd5 {[%emt 0:00:15]} exd5 {[%emt 0:00:00]} 4. Nf3 {[%emt 0:00:32]} Nc6 {[%emt 0:00:28]} 5. h3 {[%emt 0:01:23]} Bd6 {[%emt 0:00:09]} 6. Nc3 {[%emt 0:00:27]} Nge7 {[%emt 0:00:07]} 7. Bb5 {[%emt 0:01:41]} Bd7 {[%emt 0:01:11]} 8. O-O {[%emt 0:01:47]} a6 {[%emt 0:00:19]} 9. Ba4 {[%emt 0:01:10]} O-O {[%emt 0:00:35]} 10. Re1 {[%emt 0:01:20]} Re8 {[%emt 0:04:03]} 11. Bb3 {[%emt 0:11:42]} Bb4 {[%emt 0:06:14]} 12. Bd2 {[%emt 0:11:17]} Bxc3 {[%emt 0:03:42]} 13. bxc3 {[%emt 0:03:36]} f6 {[%emt 0:07:19]} 14. Rb1 {[%emt 0:11:34]} Rb8 {[%emt 0:03:22]} 15. c4 {[%emt 0:04:35]} dxc4 {[%emt 0:01:51]} 16. Bxc4+ {[%emt 0:00:14]} Kh8 {[%emt 0:00:03]} 17. c3 {[%emt 0:01:04]} Bf5 {[%emt 0:01:10]} 18. Rc1 {[%emt 0:06:01]} b5 {[%emt 0:08:02]} 19. Bb3 {[%emt 0:04:02]} Na5 20. Bc2 {[%emt 0:07:00]} Bxc2 {[%emt 0:08:14]} 21. Qxc2 {[%emt 0:00:47]} Nc4 {[%emt 0:00:52]} 22. Bf4 {[%emt 0:02:50]} Qd7 {[%emt 0:05:01]} 23. Nd2 {[%emt 0:02:16]} Nd5 {[%emt 0:08:32]} 24. Nxc4 {[%emt 0:03:17]} bxc4 {[%emt 0:00:08]} 25. Be3 {[%emt 0:01:35]} h6 {[%emt 0:09:37]} 26. Bd2 {[%emt 0:04:26]} Rec8 {[%emt 0:05:52]} 27. Be3 {[%emt 0:01:30]} f5 {[%emt 0:03:51]} 28. Rb1 {[%emt 0:03:46]} Rb5 {[%emt 0:04:03]} 29. Rb2 {[%emt 0:02:10]} Rcb8 {[%emt 0:00:44]} 30. Reb1 {[%emt 0:00:57]} f4 {[%emt 0:00:24]} 31. Bd2 {[%emt 0:00:22]} f3 {[%emt 0:07:52]} 32. Rxb5 {[%emt 0:02:03]} axb5 {[%emt 0:00:05]} 33. Qe4 {[%emt 0:01:19]} fxg2 {[%emt 0:00:50]} 34. Kxg2 {[%emt 0:00:51]} Re8 {[%emt 0:00:46]} 35. Qg4 {[%emt 0:01:11]} Qc6 {[%emt 0:02:33]} 36. Kg1 {[%emt 0:02:40]} Re6 {[%emt 0:00:41]} 37. Kf1 {[%emt 0:01:24]} Rg6 {[%emt 0:00:15]} 38. Qc8+ {[%emt 0:00:22]} Kh7 {[%emt 0:00:07]} 39. Qf5 {[%emt 0:00:48]} Ne7 {[%emt 0:06:52]} 40. Qxb5 {[%emt 0:00:00]} Qg2+ {[%emt 0:00:00]} 41. Ke2 {[%emt 0:00:00]} Rb6 {[%emt 0:00:00]} 42. Qxc4 {[%emt 0:00:00]} Rxb1 {[%emt 0:00:00]} 43. Qd3+ {[%emt 0:00:00]} Qg6 {[%emt 0:00:00]} 0-1

[Event "47th GRE-chT 2019"]
[Site "Patra"]
[Date "2019.07.05"]
[Round "5.21"]
[White "Navara, David"]
[Black "David, Alberto"]
[Result "1-0"]
[ECO "B85"]
[WhiteElo "2734"]
[BlackElo "2553"]
[Annotator "RC"]
[PlyCount "71"]
[EventDate "2019.07.02"]
[EventCountry "GRE"]
[SourceTitle "playchess.com"]
[Source "ChessBase"]
[SourceQuality "1"]
[TimeControl "5400+30"]

1. e4 {[%emt 0:00:00]} c5 {[%emt 0:02:13]} 2. Nf3 {[%emt 0:00:00]} e6 {[%emt 0:00:05]} 3. d4 {[%emt 0:00:00]} cxd4 {[%emt 0:00:04]} 4. Nxd4 {[%emt 0:00:00]} a6 {[%emt 0:00:39]} 5. Be2 {[%emt 0:00:00]} Nf6 {[%emt 0:01:15]} 6. Nc3 {[%emt 0:00:00]} Qc7 {[%emt 0:01:30]} 7. O-O {[%emt 0:01:00]} Nc6 {[%emt 0:01:21]} 8. Be3 {[%emt 0:00:08]} Be7 {[%emt 0:00:53]} 9. f4 {[%emt 0:00:07]} d6 {[%emt 0:00:04]} 10. Qe1 {[%emt 0:00:08]} O-O {[%emt 0:07:02]} 11. Qg3 {[%emt 0:00:16]} Nxd4 {[%emt 0:00:10]} 12. Bxd4 {[%emt 0:00:07]} b5 {[%emt 0:00:10]} 13. Kh1 {[%emt 0:00:14]} Bb7 {[%emt 0:01:12]} 14. a3 {[%emt 0:00:21]} Rad8 {[%emt 0:07:42]} 15. Rae1 {[%emt 0:00:52]} Rfe8 {[%emt 0:05:16]} 16. Bd3 {[%emt 0:01:11]} Rd7 {[%emt 0:25:29]} 17. Re3 {[%emt 0:01:02]} g6 {[%emt 0:12:54]} 18. Re2 {[%emt 0:00:20]} Qd8 {[%emt 0:04:26]} 19. f5 {[%emt 0:20:13]} Nh5 {[%emt 0:01:11]} 20. Qh3 {[%emt 0:03:58]} Bf6 {[%emt 0:08:04]} 21. Bxf6 {[%emt 0:00:36]} Nxf6 {[%emt 0:01:24]} 22. Qh4 {[%emt 0:00:50]} exf5 {[%emt 0:11:19]} 23. exf5 {[%emt 0:00:09]} Rxe2 {[%emt 0:00:04]} 24. Nxe2 {[%emt 0:00:21]} Kg7 {[%emt 0:01:03]} 25. Nd4 {[%emt 0:10:07]} Qe7 {[%emt 0:02:34]} 26. h3 {[%emt 0:55:00]} Nd5 {[%emt 0:01:47]} 27. Qf2 {[%emt 0:04:01]} Qe5 {[%emt 0:00:29]} 28. Ne6+ {[%emt 0:00:46]} Kg8 {[%emt 0:00:14]} 29. Ng5 {[%emt 0:01:58]} Ne3 {[%emt 0:02:45]} 30. Re1 {[%emt 0:00:30]} Re7 {[%emt 0:00:23]} 31. Nxf7 {[%emt 0:00:43]} Kxf7 {[%emt 0:00:56]} 32. fxg6+ {[%emt 0:00:06]} Kg7 {[%emt 0:00:43]} 33. gxh7 {[%emt 0:00:04]} Re8 {[%emt 0:00:36]} 34. h8=Q+ {[%emt 0:00:41]} Kxh8 {[%emt 0:00:15]} 35. Qh4+ {[%emt 0:00:07]} Kg7 {[%emt 0:00:44]} 36. Qh7+ {[%emt 0:00:05]} 1-0

[Event "47th GRE-chT 2019"]
[Site "Patra"]
[Date "2019.07.05"]
[Round "5.22"]
[White "Theodorou, Nikolas"]
[Black "Nikolaidis, Ioannis"]
[Result "0-1"]
[ECO "E11"]
[WhiteElo "2543"]
[BlackElo "2534"]
[Annotator "RC"]
[PlyCount "80"]
[EventDate "2019.07.02"]
[EventCountry "GRE"]
[SourceTitle "playchess.com"]
[Source "ChessBase"]
[SourceQuality "1"]
[TimeControl "5400+30"]

1. d4 {[%emt 0:00:00]} Nf6 {[%emt 0:03:31]} 2. c4 {[%emt 0:00:19]} e6 {[%emt 0:00:09]} 3. g3 {[%emt 0:01:39]} Bb4+ {[%emt 0:04:39]} 4. Bd2 {[%emt 0:00:41]} Be7 {[%emt 0:00:06]} 5. Bg2 {[%emt 0:00:21]} d5 {[%emt 0:00:13]} 6. Nf3 {[%emt 0:00:22]} c6 {[%emt 0:00:47]} 7. O-O {[%emt 0:07:49]} dxc4 {[%emt 0:02:21]} 8. a4 {[%emt 0:01:01]} O-O {[%emt 0:05:43]} 9. a5 {[%emt 0:10:56]} b5 {[%emt 0:01:06]} 10. axb6 {[%emt 0:00:09]} Qxb6 {[%emt 0:02:04]} 11. Bc3 {[%emt 0:10:12]} Ba6 {[%emt 0:08:50]} 12. Nbd2 {[%emt 0:03:56]} Nbd7 {[%emt 0:03:08]} 13. Qa4 {[%emt 0:01:05]} Bb5 {[%emt 0:00:08]} 14. Qa2 {[%emt 0:03:33]} a5 {[%emt 0:18:17]} 15. Bxa5 {[%emt 0:15:27]} Qb8 {[%emt 0:07:49]} 16. Qb1 {[%emt 0:01:34]} c3 {[%emt 0:02:00]} 17. bxc3 {[%emt 0:00:28]} Bxe2 {[%emt 0:03:39]} 18. Qxb8 Rfxb8 {[%emt 0:00:00]} 19. Rfe1 {[%emt 0:07:29]} Bd3 {[%emt 0:03:38]} 20. c4 {[%emt 0:06:06]} Ra6 {[%emt 0:02:54]} 21. Bc7 {[%emt 0:01:13]} Rba8 {[%emt 0:02:41]} 22. Rxa6 {[%emt 0:00:04]} Rxa6 {[%emt 0:04:09]} 23. h3 {[%emt 0:02:29]} h6 {[%emt 0:11:29]} 24. g4 {[%emt 0:04:32]} Bb4 {[%emt 0:08:47]} 25. Re3 {[%emt 0:01:16]} Bc2 {[%emt 0:02:55]} 26. Bf1 {[%emt 0:03:00]} Ra7 {[%emt 0:00:43]} 27. Bg3 {[%emt 0:03:58]} Ra1 {[%emt 0:00:34]} 28. Kg2 {[%emt 0:01:14]} c5 {[%emt 0:00:45]} 29. d5 {[%emt 0:03:59]} exd5 {[%emt 0:00:04]} 30. cxd5 {[%emt 0:00:17]} Nxd5 {[%emt 0:00:02]} 31. Re8+ {[%emt 0:00:11]} Kh7 {[%emt 0:01:39]} 32. Rd8 {[%emt 0:05:14]} Bxd2 {[%emt 0:00:31]} 33. Nxd2 {[%emt 0:00:25]} N7f6 {[%emt 0:00:36]} 34. Rc8 {[%emt 0:01:43]} Rd1 {[%emt 0:00:24]} 35. Nc4 {[%emt 0:00:47]} Be4+ {[%emt 0:00:01]} 36. f3 {[%emt 0:00:15]} Bxf3+ {[%emt 0:00:09]} 37. Kxf3 {[%emt 0:00:05]} Rxf1+ {[%emt 0:01:22]} 38. Bf2 {[%emt 0:01:15]} Rh1 {[%emt 0:00:31]} 39. Kg2 {[%emt 0:00:19]} Rc1 {[%emt 0:00:00]} 40. Rxc5 {[%emt 0:00:00]} Nf4+ {[%emt 0:00:00]} 0-1

[Event "47th GRE-chT 2019"]
[Site "Patra"]
[Date "2019.07.05"]
[Round "5.23"]
[White "Koutoukidis, Panagiotis"]
[Black "Papadopoulos, Argirios"]
[Result "1-0"]
[ECO "C54"]
[WhiteElo "2344"]
[BlackElo "2222"]
[Annotator "RC"]
[PlyCount "67"]
[EventDate "2019.07.02"]
[EventCountry "GRE"]
[SourceTitle "playchess.com"]
[Source "ChessBase"]
[SourceQuality "1"]
[TimeControl "5400+30"]

1. e4 {[%emt 0:00:00]} e5 {[%emt 0:11:13]} 2. Nf3 {[%emt 0:00:00]} Nc6 {[%emt 0:00:07]} 3. Bc4 {[%emt 0:00:00]} Bc5 {[%emt 0:00:04]} 4. O-O {[%emt 0:00:00]} Nf6 {[%emt 0:00:09]} 5. d3 {[%emt 0:00:02]} O-O {[%emt 0:00:12]} 6. c3 {[%emt 0:00:05]} d6 {[%emt 0:00:21]} 7. Re1 {[%emt 0:00:36]} h6 {[%emt 0:05:01]} 8. b4 {[%emt 0:02:29]} Bb6 {[%emt 0:01:54]} 9. a4 {[%emt 0:00:41]} a5 {[%emt 0:05:00]} 10. b5 {[%emt 0:00:56]} Ne7 {[%emt 0:01:39]} 11. h3 {[%emt 0:02:08]} Ng6 {[%emt 0:01:49]} 12. Na3 {[%emt 0:04:42]} Re8 {[%emt 0:19:47]} 13. Qb3 {[%emt 0:08:21]} Re7 {[%emt 0:04:02]} 14. Bd2 {[%emt 0:04:31]} Nh5 {[%emt 0:07:22]} 15. d4 {[%emt 0:01:06]} Qe8 {[%emt 0:10:32]} 16. Rad1 {[%emt 0:05:08]} Nhf4 {[%emt 0:02:47]} 17. Bxf4 {[%emt 0:07:30]} Nxf4 {[%emt 0:14:13]} 18. dxe5 {[%emt 0:02:00]} dxe5 {[%emt 0:00:27]} 19. Nxe5 {[%emt 0:00:39]} Be6 {[%emt 0:11:34]} 20. Nd3 {[%emt 0:03:12]} Nxd3 {[%emt 0:01:15]} 21. Rxd3 {[%emt 0:00:02]} Bc5 {[%emt 0:00:29]} 22. Nb1 {[%emt 0:00:58]} Bf5 {[%emt 0:00:32]} 23. Nd2 {[%emt 0:05:06]} Bg6 {[%emt 0:00:04]} 24. Rd5 {[%emt 0:06:15]} b6 {[%emt 0:00:34]} 25. e5 {[%emt 0:01:09]} Kh7 {[%emt 0:00:51]} 26. Ne4 {[%emt 0:03:02]} Rd8 {[%emt 0:00:30]} 27. Nxc5 {[%emt 0:02:19]} Rxd5 {[%emt 0:00:17]} 28. Bxd5 {[%emt 0:00:02]} Rxe5 {[%emt 0:00:43]} 29. Rxe5 {[%emt 0:00:38]} Qxe5 {[%emt 0:00:02]} 30. Nd7 {[%emt 0:00:12]} Qd6 {[%emt 0:00:58]} 31. Bc6 {[%emt 0:00:53]} Bf5 {[%emt 0:00:30]} 32. Qxf7 {[%emt 0:00:22]} Qd1+ {[%emt 0:00:24]} 33. Kh2 {[%emt 0:00:02]} Qd6+ {[%emt 0:00:26]} 34. g3 {[%emt 0:00:02]} 1-0